Cogmind - Beta 9.6 @@@ ROGUE MODE // 2020.07.14 @ 17:34:51 // Winter2019/RPGLIKE Player: Hermelin Result: Destroyed by G-50 Soldier with Heavy Laser Performance ------------- Evolutions (4) 2000 Regions Visited (15) 3000 Robots Destroyed (277) 1385 Value Destroyed (11132) 11132 Prototype IDs (57) 1140 Alien Tech Used (0) 0 Bonus (4212) 4212 TOTAL SCORE: 22869 Bonus ------- High Alert Combat Kills 2319 Follower Combat Kills 434 Entered Garrisons 400 Used RIF Installer 1000 Aligned with FarCom 300 Met Data Miner 300 Friendly Fire -541 Cogmind --------- Core Integrity 0/700 Matter 281/300 Energy 611/770 System Corruption 0% Temperature Cool (9) Movement Flying (26) Location -6/Factory Parts ------- > --- POWER (2) -------- Light Antimatter Reactor > --- PROPULSION (4) --- Improved Flight Unit Improved Flight Unit Improved Flight Unit Improved VTOL Module > --- UTILITY (10) ----- Improved Energy Well Advanced Signal Interpreter Hacking Suite Hacking Suite Hacking Suite System Shield System Shield System Shield Relay Coupler [NC] (8) Relay Coupler [Swarmer] (34) > --- WEAPON (4) ------- Remote Datajack Molecular Deconstructor Kinetic Spear > --- INVENTORY (4) ---- Improved Deuterium Engine Hacking Suite Compact Ion Cannon Segregator Peak State ------------ > --- POWER ------------ Light Fission Core Antimatter Reactor > --- PROPULSION ------- Improved Flight Unit Improved Flight Unit Improved Flight Unit Improved VTOL Module > --- UTILITY ---------- Improved Energy Well Advanced Signal Interpreter Hacking Suite Hacking Suite Hacking Suite System Shield System Shield System Shield Relay Coupler [NC] Relay Coupler [Swarmer] > --- WEAPON ----------- Remote Datajack Molecular Deconstructor Kinetic Spear > --- INVENTORY -------- Improved Deuterium Engine Hacking Suite Tesla Rifle Compact Ion Cannon [Rating: 87] Favorites ----------- Power Light Nuclear Core Engine Light Angular Momentum Engine Power Core Light Nuclear Core Reactor Antimatter Reactor Propulsion Improved Flight Unit Flight Unit Improved Flight Unit Utility System Shield Device Advanced Heat Sink Storage Improved Energy Well Processor Advanced Signal Interpreter Hackware System Shield Protection Improved Light Armor Plating Weapon Compact Ion Cannon Energy Gun Heavy EM Shotgun Energy Cannon Compact Ion Cannon Ballistic Gun Light Assault Rifle Launcher Advanced EMP Blaster Special Weapon Remote Datajack Slashing Weapon Chainsword Piercing Weapon Kinetic Spear Special Melee Weapon Datajack Build | -11 -10 -10 -10 -9 -8 -8 -8 -7 -7 -7 -7 -7 -7 -6 -6 ------- Run | Scr Mat Min Exi Min Mat Sto Gar Fac Gar Fac Low Low Dat Pro Fac Slots Evolved 16 | 4 1 . . 2 5 1 1 1 1 . . . . . . Power 1 | 1 . . . . . . . . . . . . . . . Propulsion 3 | 1 . . . 1 1 . . . . . . . . . . Utility 9 | 1 1 . . 1 3 1 . 1 1 . . . . . . Weapon 3 | 1 . . . . 1 . 1 . . . . . . . . Parts Attached 115 | 5 8 3 . 9 28 12 3 19 6 2 . 9 5 3 3 Power 19 | 1 1 1 . 1 4 . . 5 . . . . 1 3 2 Engine 6 | 1 . . . . 1 . . 2 . . . . . 2 . Core 10 | . 1 1 . 1 3 . . 3 . . . . . 1 . Reactor 3 | . . . . . . . . . . . . . 1 . 2 Propulsion 13 | . 1 . . 5 7 . . . . . . . . . . Treads . | . . . . . . . . . . . . . . . . Leg . | . . . . . . . . . . . . . . . . Wheel . | . . . . . . . . . . . . . . . . Hover . | . . . . . . . . . . . . . . . . Flight 13 | . 1 . . 5 7 . . . . . . . . . . Utility 47 | 2 3 2 . 3 9 7 . 8 3 1 . 5 4 . . Device 15 | 1 1 . . 1 3 6 . 2 . . . . 1 . . Storage 2 | . . . . . . . . . . . . . 2 . . Processor 8 | 1 2 1 . . 3 . . . . . . 1 . . . Hackware 11 | . . 1 . . 1 . . 3 2 1 . 3 . . . Protection 11 | . . . . 2 2 1 . 3 1 . . 1 1 . . Artifact . | . . . . . . . . . . . . . . . . Weapon 36 | 2 3 . . . 8 5 3 6 3 1 . 4 . . 1 Energy Gun 7 | 1 . . . . 5 1 . . . . . . . . . Energy Cannon 9 | . 1 . . . 2 2 1 2 1 . . . . . . Ballistic Gun 1 | 1 . . . . . . . . . . . . . . . Ballistic Cannon . | . . . . . . . . . . . . . . . . Launcher 2 | . . . . . . . . 1 1 . . . . . . Special Weapon 4 | . . . . . 1 . . . . . . 3 . . . Impact Weapon . | . . . . . . . . . . . . . . . . Slashing Weapon 11 | . 2 . . . . 2 2 3 1 . . 1 . . . Piercing Weapon 1 | . . . . . . . . . . . . . . . 1 Special Melee Weapon 1 | . . . . . . . . . . 1 . . . . . Unidentified Prototypes 10 | . . . . . 4 1 . 2 . . . 1 2 . . Parts Lost 5 | . . . . . 1 . . . . 1 . 1 . 1 1 Power 2 | . . . . . . . . . . . . . . 1 1 Propulsion . | . . . . . . . . . . . . . . . . Utility 2 | . . . . . . . . . . 1 . 1 . . . Weapon 1 | . . . . . 1 . . . . . . . . . . Highest Loss Streak 1 | . . . . . 1 . . . . 1 . 1 . 1 1 Average Slot Usage (%) 92 | . 56 82 88 94 94 100 100 98 100 100 100 96 95 91 94 Engine 3 | . 10 . . . 3 5 5 5 5 5 5 5 4 . . Core 8 | . 1 16 22 20 11 5 5 5 5 5 5 5 5 1 4 Flight 19 | . 3 11 11 21 23 23 22 21 21 20 20 20 20 20 20 Device 7 | . 3 11 11 10 10 11 11 8 5 5 5 2 . . . Processor 8 | . 21 13 11 6 7 11 11 6 5 5 5 5 5 5 5 Hackware 18 | . . 8 11 10 9 11 11 19 26 30 30 36 40 40 40 Protection 5 | . . . . 4 7 10 11 10 10 10 10 6 2 . . Energy Gun 4 | . . . . . 10 9 11 9 5 5 5 1 . . . Energy Cannon 6 | . 11 11 11 10 6 6 4 5 9 10 10 3 . . . Special Weapon 1 | . . . . . . . . . . . . 6 10 10 10 Slashing Weapon 4 | . 1 11 11 10 1 . 1 4 5 4 . 3 5 5 2 Naked Turns . | . . . . . . . . . . . . . . . . Heaviest Build 42 | 6 12 17 17 27 32 36 36 39 39 39 37 39 37 42 39 Greatest Support 39 | 8 14 14 14 27 39 39 39 39 39 39 39 39 39 39 39 Greatest Overweight (x) 2 | . . 1 1 1 1 . . . . . 2 . . 1 . Average Overweight (x) . | . . . 1 . . . . . . . . . . . . Largest Inventory Capacity 4 | 2 2 2 2 3 3 3 3 4 4 4 4 4 4 4 4 Average Capacity 3 | 1 2 2 2 2 3 3 3 3 4 4 4 4 4 4 4 Most Carried 4 | 1 2 2 2 2 3 3 3 4 4 4 4 4 4 4 4 Average Carried 3 | . 1 2 1 2 2 2 2 3 3 3 4 3 4 4 3 Final Capacity 4 | 2 2 2 2 3 3 3 3 4 4 4 4 4 4 4 4 Final Carried 4 | 1 2 2 2 2 3 3 3 4 3 4 4 4 4 4 4 Class Distribution -------------------- 31% | Scavenger-Scout 19% | Hacker-Scout 14% | Scavenger-Mutant 12% | Wizard-Sprinter 6% | Mutant 6% | Wizard-Scout 5% | Hacker-Sprinter Dominant Class ---------------- Mutant | -10/Materials Scavenger-Mutant | -10/Mines Scavenger-Mutant | -10/Exiles Scavenger-Scout | -9/Mines Scavenger-Scout | -8/Materials Scavenger-Scout | -8/Storage Scavenger-Scout | -8/Garrison Hacker-Scout | -7/Factory Hacker-Scout | -7/Garrison Hacker-Scout | -7/Factory Hacker-Sprinter | -7/Lower Caves Wizard-Sprinter | -7/Lower Caves Wizard-Sprinter | -7/Data Miner Wizard-Sprinter | -6/Proximity Caves Wizard-Scout | -6/Factory Resources | -11 -10 -10 -10 -9 -8 -8 -8 -7 -7 -7 -7 -7 -7 -6 -6 ----------- Run | Scr Mat Min Exi Min Mat Sto Gar Fac Gar Fac Low Low Dat Pro Fac Matter Collected 1876 | 250 80 30 . 90 320 130 30 190 85 20 10 230 90 110 211 Remotely . | . . . . . . . . . . . . . . . . Salvage Created 10873 | 136 547 217 . 512 2406 1943 790 1348 536 555 327 565 . 572 419 Parts 645 | 10 32 15 . 37 148 111 41 65 47 29 12 47 . 19 32 Haulers Intercepted 17 | . 2 . . . 6 5 . 2 . 2 . . . . . Recyclers Shooed 3 | 1 . . . . . 1 . 1 . . . . . . . Parts Field Recycled . | . . . . . . . . . . . . . . . . Retrieved Matter . | . . . . . . . . . . . . . . . . Parts Self-Destructed 83 | . . . . . . . . . . . 8 51 . 24 . Prevented 10 | . . . . . . . . . . . 6 4 . . . Kills | -11 -10 -10 -10 -9 -8 -8 -8 -7 -7 -7 -7 -7 -7 -6 -6 ------- Run | Scr Mat Min Exi Min Mat Sto Gar Fac Gar Fac Low Low Dat Pro Fac Combat Hostiles Destroyed 222 | . 10 7 . 25 45 32 16 18 20 5 9 17 . 8 10 Melee 8 | . . . . . . . 1 1 5 . . . . . 1 Guns 53 | . . . . . 26 9 8 5 2 1 2 . . . . Cannons 95 | . 7 5 . 20 14 17 4 9 4 4 5 6 . . . AOE 28 | . 3 1 . 4 2 5 3 2 8 . . . . . . Classes Destroyed 18 | 2 5 3 . 1 2 2 . . . . . 2 . . 1 Worker 4 | . 1 . . . 2 1 . . . . . . . . . Builder 5 | . . . . . 3 . . 1 . 1 . . . . . Tunneler 7 | 3 . 1 . 1 2 . . . . . . . . . . Hauler 17 | . 2 . . . 6 5 . 2 . 2 . . . . . Recycler 5 | 1 1 1 . . . 1 . 1 . . . . . . . Operator 7 | . . 1 . . 2 2 . 1 . 1 . . . . . Watcher 9 | . 3 . . . 4 1 . . . 1 . . . . . Swarmer 34 | . 2 . . 10 2 1 4 . 7 . 3 4 . 1 . Saboteur 1 | . . . . . . . . . . . . . . . 1 Grunt 111 | . 8 4 . 9 27 14 5 11 8 1 4 9 . 6 5 Brawler 2 | . . . . . . 2 . . . . . . . . . Duelist 6 | . . . . 1 3 . . . . . . . . . 2 Protector 1 | . . . . . . 1 . . . . . . . . . Sentry 47 | . . 2 . . 10 14 4 6 5 4 1 . . 1 . Specialist 2 | . . . . . . . . . . . . 2 . . . Hunter 8 | . . . . . 3 . 3 1 . . 1 . . . . Programmer 4 | . . . . . . . . . . . . 2 . . 2 Assembled 6 | . . 1 . 5 . . . . . . . . . . . Thug 1 | . . . . . 1 . . . . . . . . . . Best Kill Streak 11 | 4 5 2 . 4 9 9 6 7 11 5 4 7 . 3 3 Combat Bots Only 11 | . 4 2 . 4 6 8 6 5 11 2 4 7 . 3 3 Max Kills in Single Turn 4 | 1 2 1 . 2 4 4 2 2 2 2 2 1 . 1 1 Gunslinging . | . . . . . . . . . . . . . . . . Exploded 3 | . 2 1 . 2 1 3 2 1 2 . . . . . . Melee 1 | . . . . . . . 1 1 1 . . . . . 1 Uniques/NPCs Destroyed . | . . . . . . . . . . . . . . . . Combat | -11 -10 -10 -10 -9 -8 -8 -8 -7 -7 -7 -7 -7 -7 -6 -6 -------- Run | Scr Mat Min Exi Min Mat Sto Gar Fac Gar Fac Low Low Dat Pro Fac Damage Taken 11501 | . 573 121 . 708 2176 810 689 634 1040 255 646 888 808 528 1625 Core 8290 | . 471 97 . 569 1599 556 436 408 639 155 422 569 605 446 1318 Absorbed by Shields . | . . . . . . . . . . . . . . . . Redirected to Core 6567 | . 335 85 . 416 1193 477 306 366 553 119 354 472 517 281 1093 Core Remaining (%) 97 | 100 . . . 100 . . 89 . . . . . . 100 . Volleys Fired 661 | 15 48 25 . 70 158 68 53 49 23 17 25 45 8 17 40 Largest 3 | 1 1 1 . 1 3 3 3 3 3 3 3 3 1 1 1 Hottest 209 | 40 56 56 . 56 192 198 185 185 209 209 209 209 . 30 30 Shots Fired 1227 | 15 48 25 . 70 342 202 108 133 59 45 52 63 8 17 40 Gun 529 | 15 . . . . 200 110 76 84 20 12 9 3 . . . Cannon 595 | . 48 25 . 70 140 92 32 49 32 33 43 31 . . . Launcher 7 | . . . . . . . . . 7 . . . . . . Special 96 | . . . . . 2 . . . . . . 29 8 17 40 Kinetic . | . . . . . . . . . . . . . . . . Thermal 418 | 15 . . . . 180 68 32 49 23 17 18 16 . . . Explosive . | . . . . . . . . . . . . . . . . Electromagnetic 715 | . 48 25 . 70 162 134 76 84 36 28 34 18 . . . Robot Hit Streak 45 | 7 8 6 . 16 17 44 36 45 10 22 17 10 4 11 5 Robot Miss Streak 5 | 1 2 2 . 2 3 2 4 3 3 2 3 2 1 1 5 Penetration Max . | . . . . . . . . . . . . . . . . Secondary Targets 2 | . . . . . 2 . . . . . . . . . . Max Gunslinging Chain 1 | . . . . . 1 . . . . . . . . . . Shots Hit Robots 908 | 13 33 20 . 57 225 153 80 95 58 36 45 45 6 19 23 Core Hits 399 | 5 19 10 . 30 101 73 33 48 36 20 12 10 . 2 . Critical Hits 9 | . 1 . . 1 . 2 . 2 1 1 1 . . . . Critical Kills 6 | . 1 . . . . 1 . 2 1 . 1 . . . . Critical Parts Destroyed 3 | . . . . 1 . 1 . . . 1 . . . . . Melee Attacks 132 | . . 17 . . . 9 14 2 46 2 4 6 27 5 . Impact . | . . . . . . . . . . . . . . . . Slashing 125 | . . 17 . . . 9 14 2 46 . . 5 27 5 . Piercing . | . . . . . . . . . . . . . . . . Sneak Attacks 8 | . . 2 . . . . . . . 2 3 1 . . . Combat Hostiles . | . . . . . . . . . . . . . . . . Follow-up Attacks . | . . . . . . . . . . . . . . . . Damage Inflicted 22917 | 170 1107 784 . 1383 5950 3697 1960 2711 1947 829 1082 835 . 462 . Guns 7440 | 170 . . . . 2875 1576 949 1046 355 273 117 79 . . . Cannons 10335 | . 795 535 . 1211 2311 1583 397 802 604 526 905 666 . . . Explosions 3563 | . 312 74 . 172 754 538 353 786 484 30 60 . . . . Melee 1569 | . . 175 . . . . 261 77 504 . . 90 . 462 . Ramming . | . . . . . . . . . . . . . . . . Kinetic . | . . . . . . . . . . . . . . . . Thermal 9184 | 170 312 74 . 172 3315 1440 750 1588 413 248 418 284 . . . Explosive 194 | . . . . . . 194 . . . . . . . . . Electromagnetic 11970 | . 795 535 . 1211 2635 2063 949 1046 1030 581 664 461 . . . Impact . | . . . . . . . . . . . . . . . . Slashing 1569 | . . 175 . . . . 261 77 504 . . 90 . 462 . Piercing . | . . . . . . . . . . . . . . . . Highest Corruption 2 | . . . . . . 2 2 1 1 1 1 1 1 1 . Average Corruption 1 | . . . . . . 2 2 1 1 1 1 1 1 1 . Corruption Purged . | . . . . . . . . . . . . . . . . Effects 29 | . . . . . . 5 11 2 5 1 2 3 . . . Message Errors 9 | . . . . . . 1 5 . 2 . . 1 . . . Heat Flow Errors 4 | . . . . . . 1 3 . . . . . . . . Energy Discharges 3 | . . . . . . . 1 1 . . . 1 . . . Data Loss (minor) 4 | . . . . . . . . 1 2 1 . . . . . Targeting Errors 7 | . . . . . . 2 1 . 1 . 2 1 . . . Weapon Failures 2 | . . . . . . 1 1 . . . . . . . . Overload Shots . | . . . . . . . . . . . . . . . . Overflow Damage 593 | . 5 49 . 12 115 24 . 146 14 12 43 27 . 146 . Projectiles 167 | . 5 2 . 12 28 24 . . 14 12 43 27 . . . Explosions 233 | . . . . . 87 . . 146 . . . . . . . Melee 193 | . . 47 . . . . . . . . . . . 146 . Knockbacks . | . . . . . . . . . . . . . . . . Impact . | . . . . . . . . . . . . . . . . Kinetic . | . . . . . . . . . . . . . . . . Secondary . | . . . . . . . . . . . . . . . . Self-Inflicted Damage 425 | . 54 . . 65 88 73 85 . 25 35 . . . . . Shots 12 | . 2 . . 2 2 2 2 . 1 1 . . . . . Rammed . | . . . . . . . . . . . . . . . . Targets Rammed . | . . . . . . . . . . . . . . . . Kicked . | . . . . . . . . . . . . . . . . Crushed . | . . . . . . . . . . . . . . . . Highest Temperature 437 | 20 129 25 . 120 437 349 384 313 249 299 314 251 . 14 14 Average Temperature 84 | 20 45 8 . 34 96 95 99 82 84 89 136 88 . 14 8 Received Heat Transfer 3846 | . 183 51 . 168 1017 324 153 252 279 105 216 180 102 183 633 Effects 10 | . . . . . 6 3 . . . . . 1 . . . Shutdowns 3 | . . . . . 2 1 . . . . . . . . . Energy Bleed 4 | . . . . . 1 2 . . . . . 1 . . . Interference 2 | . . . . . 2 . . . . . . . . . . Matter Decay 1 | . . . . . 1 . . . . . . . . . . Siege Activations . | . . . . . . . . . . . . . . . . Robots Corrupted 15 | . . 1 . 1 3 1 3 1 1 . 2 2 . . . Combat Hostiles 12 | . . 1 . 1 3 1 . 1 1 . 2 2 . . . Parts Fried 56 | . 7 1 . 2 11 13 2 5 6 5 4 . . . . Impact Corruptions . | . . . . . . . . . . . . . . . . Robots Melted . | . . . . . . . . . . . . . . . . Combat Hostiles . | . . . . . . . . . . . . . . . . Parts Melted 10 | . . . . . 6 . 1 2 1 . . . . . . Heat Transferred 12790 | 375 400 100 . 200 5512 1798 880 1723 555 296 581 370 . . . Parts Sabotaged 1 | . . . . . . . . . . . . . . . 1 Parts Stolen . | . . . . . . . . . . . . . . . . Parts Stripped . | . . . . . . . . . . . . . . . . Power Chain Reactions 37 | . 4 2 . 3 10 6 4 5 1 1 1 . . . . Missiles Intercepted . | . . . . . . . . . . . . . . . . Alert | -11 -10 -10 -10 -9 -8 -8 -8 -7 -7 -7 -7 -7 -7 -6 -6 ------- Run | Scr Mat Min Exi Min Mat Sto Gar Fac Gar Fac Low Low Dat Pro Fac Peak Influence 1310 | 20 300 247 . 215 887 1170 1111 1310 1229 659 . . . . 620 Average Influence 491 | 6 158 138 . 83 339 775 804 1042 876 357 . . . . 381 Maximum Alert Level 4 | . 1 1 . 1 3 4 4 4 4 2 . . . . 2 Low Security (%) 32 | 100 61 80 . 87 39 . . . . 13 . . . . 35 Level 1 13 | . 38 19 . 12 21 1 . . . 41 . . . . . Level 2 25 | . . . . . 32 42 37 10 31 44 . . . . 64 Level 3 18 | . . . . . 6 52 59 34 36 . . . . . . Level 4 9 | . . . . . . 3 3 55 32 . . . . . . Level 5 . | . . . . . . . . . . . . . . . . High Security . | . . . . . . . . . . . . . . . . Max Security . | . . . . . . . . . . . . . . . . Squads Dispatched 32 | . 1 . . 2 6 7 . 9 . 3 . . . . 4 Investigation 13 | . 1 . . 2 3 1 . 3 . 2 . . . . 1 Extermination 2 | . . . . . . . . 1 . . . . . . 1 Reinforcement 7 | . . . . . 2 2 . 2 . 1 . . . . . Assault 4 | . . . . . 1 1 . . . . . . . . 2 Garrison 6 | . . . . . . 3 . 3 . . . . . . . Intercept . | . . . . . . . . . . . . . . . . Construction Impeded 1 | . . . . . 1 . . . . . . . . . . Haulers Reinforced 1 | . . . . . . . . 1 . . . . . . . Stealth | -11 -10 -10 -10 -9 -8 -8 -8 -7 -7 -7 -7 -7 -7 -6 -6 --------- Run | Scr Mat Min Exi Min Mat Sto Gar Fac Gar Fac Low Low Dat Pro Fac Distress Signals 4 | . . . . . . 4 . . . . . . . . . Communications Jammed . | . . . . . . . . . . . . . . . . Distress Signals . | . . . . . . . . . . . . . . . . Times Spotted 318 | . 17 9 . 43 66 47 15 19 23 10 10 24 5 10 20 Peak Tracking Total 13 | . 3 2 . 13 7 6 4 3 10 4 5 4 4 4 6 Tactical Retreats 27 | . 3 2 . 5 4 6 1 1 3 1 . 1 . . . Traps | -11 -10 -10 -10 -9 -8 -8 -8 -7 -7 -7 -7 -7 -7 -6 -6 ------- Run | Scr Mat Min Exi Min Mat Sto Gar Fac Gar Fac Low Low Dat Pro Fac Traps Triggered 18 | . . . . . . 2 8 2 6 . . . . . . Indirectly . | . . . . . . . . . . . . . . . . Trap Hack Attempts . | . . . . . . . . . . . . . . . . Triggered . | . . . . . . . . . . . . . . . . Disarmed . | . . . . . . . . . . . . . . . . Reprogrammed . | . . . . . . . . . . . . . . . . Reused . | . . . . . . . . . . . . . . . . Traps Extracted . | . . . . . . . . . . . . . . . . Installed . | . . . . . . . . . . . . . . . . Triggered 1 | . . . . . 1 . . . . . . . . . . Power Sources Rigged 8 | . . . . . 6 2 . . . . . . . . . Exploded 5 | . . . . . 3 2 . . . . . . . . . Machines | -11 -10 -10 -10 -9 -8 -8 -8 -7 -7 -7 -7 -7 -7 -6 -6 ---------- Run | Scr Mat Min Exi Min Mat Sto Gar Fac Gar Fac Low Low Dat Pro Fac Machines Disabled 29 | . 3 . . 1 5 5 4 3 5 1 . 1 1 . . Max in Single Turn 2 | . 1 . . 1 1 1 1 2 1 1 . 1 . . . Garrison Access 1 | . . . . . 1 . . . . . . . . . . Garrison Relay 6 | . . . . . . . 3 . 3 . . . . . . Machines Sabotaged . | . . . . . . . . . . . . . . . . Garrisons Compromised . | . . . . . . . . . . . . . . . . Overloaded Fab Kills . | . . . . . . . . . . . . . . . . Fab Network Shutdowns 2 | . . . . . . . . . . 1 . . . . 1 Hacking | -11 -10 -10 -10 -9 -8 -8 -8 -7 -7 -7 -7 -7 -7 -6 -6 --------- Run | Scr Mat Min Exi Min Mat Sto Gar Fac Gar Fac Low Low Dat Pro Fac Machines Accessed 73 | . 7 . 3 2 16 9 . 14 . 14 . . 4 . 4 Terminals 47 | . 7 . . 1 11 7 . 9 . 10 . . . . 2 Fabricators 4 | . . . . . . . . 2 . 1 . . . . 1 Repair Stations 2 | . . . . . 2 . . . . . . . . . . Recycling Units 2 | . . . . . 1 1 . . . . . . . . . Scanalyzers 3 | . . . . . 2 . . 1 . . . . . . . Garrison Access 7 | . . . . . . 1 . 2 . 3 . . . . 1 Total Hacks 313 | . 26 . 5 5 68 49 . 52 . 70 . . 22 . 16 Successful 190 | . 13 . 5 4 50 24 . 28 . 33 . . 22 . 11 Failed 121 | . 13 . . 1 17 25 . 23 . 37 . . . . 5 Catastrophic 20 | . 1 . . . 3 3 . 3 . 10 . . . . . Database Lockouts 3 | . . . . . 2 . . 1 . . . . . . . Manual 144 | . 16 . 1 3 23 36 . 23 . 32 . 1 . . 9 Terminals 224 | . 26 . . 4 42 42 . 38 . 61 . . . . 11 Fabricators 8 | . . . . . . . . 5 . 1 . . . . 2 Repair Stations 5 | . . . . . 5 . . . . . . . . . . Recycling Units 3 | . . . . . 1 2 . . . . . . . . . Scanalyzers 26 | . . . . . 20 . . 6 . . . . . . . Garrison Access 19 | . . . . . . 5 . 3 . 8 . . . . 3 Terminal Hacks 113 | . 9 . 5 4 22 15 . 13 . 17 . . 22 . 6 Record 15 | . . . 4 . . . . . . . . . 11 . . Part Schematic 14 | . 3 . . . 1 3 . 2 . 2 . . 3 . . Robot Schematic 8 | . . . . . . . . 2 . . . . 5 . 1 Robot Analysis 7 | . 2 . . . 1 1 . 1 . . . . . . 2 Prototype ID Bank 14 | . 1 . . . 6 1 . 1 . 2 . . 3 . . Open Door 3 | . . . . 1 . 2 . . . . . . . . . Level Access Points 1 | . . . . . . . . . . 1 . . . . . Branch Access Points 2 | . . . . . . . . 1 . 1 . . . . . Terminal Index 4 | . . . . . . 1 . 1 . 1 . . . . 1 Scanalyzer Index 1 | . . . . . . . . . . 1 . . . . . Alert Level 7 | . . . . 1 4 2 . . . . . . . . . Unreport Threat 18 | . . . . 2 3 4 . 2 . 6 . . . . 1 Locate Traps 6 | . . . . . 3 . . 1 . 1 . . . . 1 Recall Investigation 2 | . . . . . 1 . . 1 . . . . . . . Hauler Manifests 3 | . 1 . . . 1 . . . . 1 . . . . . Registered Components 3 | . 1 . . . 1 . . . . 1 . . . . . Registered Prototypes 1 | . . . . . 1 . . . . . . . . . . Zone Layout 3 | . 1 . . . . 1 . 1 . . . . . . . EX-Prototype ID Bank 1 | . . . 1 . . . . . . . . . . . . Fabricator Hacks 8 | . . . . . . . . 5 . 1 . . . . 2 Load Schematic 2 | . . . . . . . . 1 . . . . . . 1 Build 6 | . . . . . . . . 4 . 1 . . . . 1 Repair Station Hacks 3 | . . . . . 3 . . . . . . . . . . Scan Component 2 | . . . . . 2 . . . . . . . . . . Repair 1 | . . . . . 1 . . . . . . . . . . Recycling Unit Hacks 2 | . . . . . 1 1 . . . . . . . . . Report Inventory 2 | . . . . . 1 1 . . . . . . . . . Scanalyzer 26 | . . . . . 20 . . 6 . . . . . . . Insert Component 12 | . . . . . 10 . . 2 . . . . . . . Analyze 14 | . . . . . 10 . . 4 . . . . . . . Garrison Access Hacks 8 | . . . . . . 1 . 2 . 4 . . . . 1 Unlock Access 6 | . . . . . . 1 . 2 . 2 . . . . 1 Coupler Status 2 | . . . . . . . . . . 2 . . . . . Unauthorized Hacks 30 | . 4 . . . 4 7 . 2 . 11 . . . . 2 Terminals 26 | . 4 . . . 4 6 . 1 . 10 . . . . 1 Assimilate 4 | . 1 . . . . . . . . 3 . . . . . Botnet 19 | . 3 . . . 2 6 . 1 . 6 . . . . 1 Operators 2 | . . . . . 1 . . . . 1 . . . . . Sabotage 1 | . . . . . 1 . . . . . . . . . . Fabricators . | . . . . . . . . . . . . . . . . Repair Stations . | . . . . . . . . . . . . . . . . Recycling Units 1 | . . . . . . 1 . . . . . . . . . Mask 1 | . . . . . . 1 . . . . . . . . . Scanalyzers . | . . . . . . . . . . . . . . . . Garrison Access 3 | . . . . . . . . 1 . 1 . . . . 1 Reprogram 2 | . . . . . . . . 1 . . . . . . 1 Eject 1 | . . . . . . . . . . 1 . . . . . Data Cores Recovered 2 | . . . . . 1 . . 1 . . . . . . . Used 2 | . . . . . 1 . . 1 . . . . . . . Hacking Detections 52 | . 7 . . 1 13 7 . 11 . 10 . . . . 3 Full Trace Events 10 | . 3 . . 1 1 1 . 2 . 1 . . . . 1 Feedback Events 2 | . . . . . . . . 1 . 1 . . . . . Corruption 1 | . . . . . . . . 1 . . . . . . . Hackware Fried 1 | . . . . . . . . . . 1 . . . . . Feedback Blocked . | . . . . . . . . . . . . . . . . Robot Schematics Acquired 8 | . . . . . . . . 2 . . . . 5 . 1 Robots Built . | . . . . . . . . . . . . . . . . Matter . | . . . . . . . . . . . . . . . . Time . | . . . . . . . . . . . . . . . . Total Robot Build Rating . | . . . . . . . . . . . . . . . . Part Schematics Acquired 26 | . 3 . . . 11 3 . 4 . 2 . . 3 . . Parts Built 8 | . . . . . . . . 6 . 1 . . . . 1 Matter 1180 | . . . . . . . . 694 . 168 . . . . 318 Time 536 | . . . . . . . . 283 . 84 . . . . 169 Total Part Build Rating 38 | . . . . . . . . 28 . 4 . . . . 6 Parts Repaired 1 | . . . . . 1 . . . . . . . . . . Time 60 | . . . . . 60 . . . . . . . . . . Parts Recycled . | . . . . . . . . . . . . . . . . Recycled Matter . | . . . . . . . . . . . . . . . . Retrieved Matter . | . . . . . . . . . . . . . . . . Retrieved Components . | . . . . . . . . . . . . . . . . Parts Scanalyzed 12 | . . . . . 10 . . 2 . . . . . . . Part Schematics Acquired 12 | . . . . . 10 . . 2 . . . . . . . Parts Damaged . | . . . . . . . . . . . . . . . . Bothacking | -11 -10 -10 -10 -9 -8 -8 -8 -7 -7 -7 -7 -7 -7 -6 -6 ------------ Run | Scr Mat Min Exi Min Mat Sto Gar Fac Gar Fac Low Low Dat Pro Fac Used RIF Installer 2 | . . . . . . . 1 . 1 . . . . . . Program Shield 1 | . . . . . . . . . 1 . . . . . . Robots Hacked 15 | . . . . . . . . . . 2 4 5 . 1 3 Non-combat 8 | . . . . . . . . . . 2 3 . . . 3 Combat 7 | . . . . . . . . . . . 1 5 . 1 . Robot Hacks Applied 17 | . . . . . . . . . . 2 4 7 . 1 3 parse_system 3 | . . . . . . . . . . . 2 1 . . . start_evac 1 | . . . . . . . . . . . . . . . 1 disrupt_area 1 | . . . . . . . . . . . . . . 1 . go_dormant 1 | . . . . . . . . . . . . 1 . . . streamctrl_high 2 | . . . . . . . . . . . . 2 . . . formatsys_low 5 | . . . . . . . . . . 2 2 . . . 1 formatsys_high 4 | . . . . . . . . . . . . 3 . . 1 Relay Couplers Released 11 | . . . . . 1 . 4 . 4 2 . . . . . Ejected 2 | . . . . . . . . . . 2 . . . . . Machine Destruction 9 | . . . . . 1 . 4 . 4 . . . . . . Attached 4 | . . . . . . . . 1 1 . . 2 . . . Robots Rewired 1 | . . . . . . . . . . . . . . . 1 Allies Hacked . | . . . . . . . . . . . . . . . . Hacks Repelled . | . . . . . . . . . . . . . . . . Allies | -11 -10 -10 -10 -9 -8 -8 -8 -7 -7 -7 -7 -7 -7 -6 -6 -------- Run | Scr Mat Min Exi Min Mat Sto Gar Fac Gar Fac Low Low Dat Pro Fac Total Allies 16 | . 1 . . . . . . 1 . 4 2 5 . . 3 Largest Group 7 | . 1 1 . . . . . 1 . 4 6 7 3 3 2 Highest-Rated Group 136 | . 10 10 . . . . . 32 . 56 85 136 92 92 35 Highest-Rated Ally 41 | . 10 10 . . . . . 32 . 26 26 41 41 41 29 Total Orders 33 | . . . . . . 8 . . . 4 4 7 6 . 4 GOTO 13 | . . . . . . . . . . 2 2 4 3 . 2 FOLLOW 12 | . . . . . . . . . . 2 2 3 3 . 2 EXPLORE 8 | . . . . . . 8 . . . . . . . . . Ally Attacks 56 | . . . . . . . . 8 . . . 17 19 6 6 Total Damage 1759 | . . . . . . . . 219 . . . 362 877 279 22 Kills 12 | . . . . . . . . 3 . . . 4 4 1 . Allies Corrupted 1 | . . . . . . 1 . . . . . . . . . Allies Melted . | . . . . . . . . . . . . . . . . Intel | -11 -10 -10 -10 -9 -8 -8 -8 -7 -7 -7 -7 -7 -7 -6 -6 ------- Run | Scr Mat Min Exi Min Mat Sto Gar Fac Gar Fac Low Low Dat Pro Fac Robot Analysis Total 7 | . 2 . . . 1 1 . 1 . . . . . . 2 Derelict Logs Recovered 9 | . . 2 . 1 . . . . . . 1 3 . 2 . Drone Launches 8 | . . . . . . 8 . . . . . . . . . Drone Recoveries . | . . . . . . . . . . . . . . . . Exploration | -11 -10 -10 -10 -9 -8 -8 -8 -7 -7 -7 -7 -7 -7 -6 -6 ------------- Run | Scr Mat Min Exi Min Mat Sto Gar Fac Gar Fac Low Low Dat Pro Fac Turns Passed 9387 | 76 577 604 535 670 1481 669 624 846 550 442 372 791 307 295 548 Spaces Moved 12234 | 74 829 682 445 861 1590 1023 764 1238 533 1110 416 1376 289 554 450 Core 644 | 74 563 . . . . . . . . . 7 . . . . Treads . | . . . . . . . . . . . . . . . . Legs . | . . . . . . . . . . . . . . . . Wheels . | . . . . . . . . . . . . . . . . Hover . | . . . . . . . . . . . . . . . . Flight 11590 | . 266 682 445 861 1590 1023 764 1238 533 1110 409 1376 289 554 450 Fastest Speed 26 | 50 40 40 120 34 26 26 26 26 26 26 26 26 26 26 26 Average Speed 35 | 50 46 64 120 47 33 26 26 26 26 26 28 26 26 26 26 Slowest Speed 150 | 50 50 120 120 120 108 26 26 26 26 26 150 26 26 96 26 Overloaded Moves . | . . . . . . . . . . . . . . . . Propulsion Burnouts . | . . . . . . . . . . . . . . . . Robots Hopped 49 | . . . . 6 21 6 . 5 . 4 3 2 . . 2 Cave-ins Triggered . | . . . . . . . . . . . . . . . . Exploration Rate (%) 70 | 3 99 93 88 95 98 98 72 35 76 35 67 94 91 70 10 Regions Visited 15 Branch Regions 8 Pre-discovered Areas 1 | . . . . . . . . . . . . . 1 . . Known Exits Taken 10 | . 1 1 . . 1 1 . 1 . 1 1 1 1 1 . Unknown Exits Taken 3 | 1 . . 1 1 . . . . . . . . . . . Scrap Searched 11 | . . 1 . 3 . . . . . . 3 2 . 2 . Spaces Dug 30 | . . 13 . . . 5 . . 9 . . 3 . . . Terrain Destroyed 222 | . 13 28 . 12 34 58 6 47 9 8 1 6 . . . Melee 30 | . . 13 . . . 5 . . 9 . . 3 . . . Projectile 41 | . . . . . 1 23 . 9 . 5 . 3 . . . AOE 151 | . 13 15 . 12 33 30 6 38 . 3 1 . . . . Actions | -11 -10 -10 -10 -9 -8 -8 -8 -7 -7 -7 -7 -7 -7 -6 -6 --------- Run | Scr Mat Min Exi Min Mat Sto Gar Fac Gar Fac Low Low Dat Pro Fac Total 15841 | 94 969 790 446 1042 2201 1251 1075 1649 825 1220 618 1729 463 662 807 Wait 1853 | . 61 36 . 69 300 75 66 275 51 84 152 248 107 44 285 Move 12123 | 73 828 681 444 848 1550 1010 762 1227 531 1101 410 1371 288 553 446 Hop 45 | . . . . 6 18 6 . 5 . 4 2 2 . . 2 Pick Up 44 | 1 3 1 1 1 14 1 2 7 1 2 . 7 . 2 1 Fast Attach 62 | 5 8 3 . 4 12 8 . 9 . . . 2 5 3 3 Attach 21 | . . . . . 10 . 1 3 2 1 . 4 . . . Detach 8 | . . . . . 6 . . 2 . . . . . . . Swap 33 | . . . . 5 7 4 2 7 4 1 . 3 . . . Drop 90 | . 8 3 1 7 23 8 1 16 2 . . 9 5 4 3 Fire 661 | 15 48 25 . 70 158 68 53 49 23 17 25 45 8 17 40 Melee 132 | . . 17 . . . 9 14 2 46 2 4 6 27 5 . Ram . | . . . . . . . . . . . . . . . . Kick . | . . . . . . . . . . . . . . . . Crush . | . . . . . . . . . . . . . . . . Escape Stasis 288 | . . . . . . 18 144 18 108 . . . . . . Rewire . | . . . . . . . . . . . . . . . . Trap 8 | . . . . . 6 2 . . . . . . . . . Miscellaneous 473 | . 13 24 . 32 97 42 30 29 57 8 25 32 23 34 27 Route ------- -11/Scrapyard -10/Materials (discovered 4 exits: *Mat x3 / *Min) -10/Mines (discovered 3 exits: *Mat x2 / *Exi) -10/Exiles (discovered 2 exits: *Min x2) -9/Mines (discovered 2 exits: *Mat x2) -8/Materials (discovered 5 exits: *Fac x3 / *Sto x2) -8/Storage (discovered 3 exits: *Fac / *Rec / Gar) -8/Garrison (discovered 3 exits: *Fac x3) -7/Factory (discovered 5 exits: *Fac / Low x2 / Gar / Gar) -7/Garrison (discovered 3 exits: *Fac x3) -7/Factory (discovered 8 exits: *Fac x4 / *Low x2 / Gar / Gar) -7/Lower Caves -7/Lower Caves (discovered 2 exits: *Fac / *Dat) -7/Data Miner -6/Proximity Caves -6/Factory (discovered 2 exits: Low / Gar) History --------- Turn | Location | Event 8 | -11/Scrapyard | Upgraded with Power slot (x1) 8 | -11/Scrapyard | Upgraded with Propulsion slot (x1) 8 | -11/Scrapyard | Upgraded with Utility slot (x1) 8 | -11/Scrapyard | Upgraded with Weapon slot (x1) 9 | -11/Scrapyard | Discovered new exit (range 16) 77 | -11/Scrapyard | Entered Materials 257 | -10/Materials | Discovered new exit (range 16) 313 | -10/Materials | Build established: Mutant 353 | -10/Materials | Discovered new exit (range 6) 355 | -10/Materials | Identified exit to Materials 393 | -10/Materials | Discovered new exit (range 16) 435 | -10/Materials | Discovered exit to Materials (range 5) 578 | -10/Materials | Core integrity fell below 50% 584 | -10/Materials | Reached level 2 622 | -10/Materials | Upgraded with Utility slot (x1) 648 | -10/Materials | Identified exit to Mines 654 | -10/Materials | Entered Mines 654 | -10/Mines | Accompanied by 1 ally 707 | -10/Mines | Learned 2 Materials zone layouts 729 | -10/Mines | Deemed a non-threat by the Exiles lab entrance 729 | -10/Mines | Discovered new exit (range 5) 730 | -10/Mines | Identified exit to Exiles 841 | -10/Mines | Discovered exit to Materials (range 8) 861 | -10/Mines | Received a Rocket Launcher from a helpful Derelict 873 | -10/Mines | Discovered exit to Materials (range 5) 883 | -10/Mines | Build established: Scavenger-Mutant 977 | -10/Mines | Learned Materials terminal intel 1155 | -10/Mines | Excavation squad dispatched 1155 | -10/Mines | A large section of the Mines collapsed 1258 | -10/Mines | Entered Exiles 1276 | -10/Exiles | Discovered new exit (range 14) 1291 | -10/Exiles | Met 8R-AWN 1311 | -10/Exiles | Met EX-HEX 1348 | -10/Exiles | Met EX-BIN 1370 | -10/Exiles | Reached level 3 1370 | -10/Exiles | Aligned with FarCom system 1371 | -10/Exiles | Given EX-Vault access code 1402 | -10/Exiles | Opened EX-Vault 1453 | -10/Exiles | Warned to stay clear of 0b10 Research branches 1501 | -10/Exiles | Found PSU Rigger 1567 | -10/Exiles | Met EX-DEC 1610 | -10/Exiles | Visited The Gauntlet 1782 | -10/Exiles | Discovered new exit (range 10) 1793 | -10/Exiles | Left Exiles lab with PSU Rigger 1793 | -10/Exiles | Entered Mines 1972 | -9/Mines | Assembled infested the area 1977 | -9/Mines | Assisted by a Guerilla fighting off Assembled 2062 | -9/Mines | Discovered new exit (range 8) 2119 | -9/Mines | Reached level 4 2125 | -9/Mines | Upgraded with Propulsion slot (x1) 2169 | -9/Mines | Discovered new exit (range 7) 2207 | -9/Mines | Learned Materials trap positions 2267 | -9/Mines | Met a Derelict shopkeep closing up shop 2296 | -9/Mines | Build established: Scavenger-Scout 2435 | -9/Mines | Reached level 5 2447 | -9/Mines | Upgraded with Utility slot (x1) 2463 | -9/Mines | Entered Materials 2465 | -8/Materials | Loaded intel: 17 trap records 2465 | -8/Materials | Reached level 6 2465 | -8/Materials | Upgraded with Weapon slot (x1) 2466 | -8/Materials | Loaded intel: 12 terminal locations 2726 | -8/Materials | Repaired Imp. VTOL Module 2916 | -8/Materials | Discovered new exit (range 5) 3031 | -8/Materials | Central database locked down 3054 | -8/Materials | Reached level 7 3285 | -8/Materials | Upgraded with Utility slot (x1) 3305 | -8/Materials | Discovered new exit (range 12) 3352 | -8/Materials | Reached level 8 3355 | -8/Materials | Upgraded with Utility slot (x1) 3375 | -8/Materials | Core integrity fell below 50% 3405 | -8/Materials | Identified exit to Storage 3505 | -8/Materials | Reached level 9 3621 | -8/Materials | Discovered exit to Storage (range 9) 3735 | -8/Materials | Upgraded with Propulsion slot (x1) 3740 | -8/Materials | Discovered new exit (range 9) 3784 | -8/Materials | Identified exit to Factory 3821 | -8/Materials | Reached level 10 3830 | -8/Materials | Upgraded with Utility slot (x1) 3865 | -8/Materials | Discovered exit to Factory (range 7) 3944 | -8/Materials | Entered Storage 3946 | -8/Storage | Reached level 11 3985 | -8/Storage | Build established: Hacker-Scout 4016 | -8/Storage | Garrison activated, responded to threat 4063 | -8/Storage | Reached level 12 4066 | -8/Storage | Upgraded with Utility slot (x1) 4084 | -8/Storage | Destroyed 8 combat bots 4189 | -8/Storage | Identified exit to Garrison 4308 | -8/Storage | Discovered new exit (range 2) 4308 | -8/Storage | Identified exit to Recycling 4344 | -8/Storage | First assault squad dispatched 4377 | -8/Storage | Build established: Scavenger-Scout 4422 | -8/Storage | Reached level 13 4493 | -8/Storage | Discovered exit to Factory (range 7) 4613 | -8/Storage | Entered Garrison 4670 | -8/Garrison | Garrison Relay disabled 4680 | -8/Garrison | Triggered checkpoint 4769 | -8/Garrison | Garrison Relay disabled 4775 | -8/Garrison | Discovered exit to Factory (range 14) 4834 | -8/Garrison | Triggered checkpoint 4844 | -8/Garrison | Triggered checkpoint 4895 | -8/Garrison | Triggered checkpoint 5037 | -8/Garrison | Discovered exit to Factory (range 10) 5079 | -8/Garrison | Discovered exit to Factory (range 9) 5128 | -8/Garrison | Garrison Relay disabled 5131 | -8/Garrison | Upgraded with Weapon slot (x1) 5192 | -8/Garrison | Installed Relay Interface Framework 5206 | -8/Garrison | Triggered checkpoint 5237 | -8/Garrison | Entered Factory 5239 | -7/Factory | Reached level 14 5239 | -7/Factory | Upgraded with Utility slot (x1) 5247 | -7/Factory | Reached level 15 5410 | -7/Factory | Identified exit to Garrison 5514 | -7/Factory | Identified exit to Lower Caves 5613 | -7/Factory | Reached level 16 5628 | -7/Factory | Discovered new exit (range 16) 5634 | -7/Factory | Identified exit to Factory 5644 | -7/Factory | Identified exit to Garrison 5816 | -7/Factory | Fabricated Neutron Cannon (x2) 5889 | -7/Factory | Fabricated System Shield (x1) 5911 | -7/Factory | Build established: Hacker-Scout 5964 | -7/Factory | Fabricated System Shield (x1) 6012 | -7/Factory | Central database locked down 6047 | -7/Factory | Fabricated Energy Well (x2) 6083 | -7/Factory | Entered Garrison 6156 | -7/Garrison | Triggered checkpoint 6162 | -7/Garrison | Garrison Relay disabled 6320 | -7/Garrison | Discovered new exit (range 10) 6340 | -7/Garrison | Identified exit to Factory 6347 | -7/Garrison | Garrison Relay disabled 6352 | -7/Garrison | Triggered checkpoint 6408 | -7/Garrison | Triggered checkpoint 6477 | -7/Garrison | Destroyed 11 combat bots 6522 | -7/Garrison | Triggered checkpoint 6533 | -7/Garrison | Discovered exit to Factory (range 11) 6583 | -7/Garrison | Garrison Relay disabled 6586 | -7/Garrison | Triggered checkpoint 6623 | -7/Garrison | Discovered exit to Factory (range 15) 6629 | -7/Garrison | Expanded RIF knowledge: Program Shield 6629 | -7/Garrison | Reached level 17 6630 | -7/Garrison | Upgraded with Utility slot (x1) 6633 | -7/Garrison | Entered Factory 6718 | -7/Factory | Identified exit to Garrison 6733 | -7/Factory | Discovered exit to Lower Caves (range 15) 6739 | -7/Factory | Fabricated Imp. Cooling System? 6793 | -7/Factory | Identified exit to Garrison 6931 | -7/Factory | Local fabrication network quarantined 6970 | -7/Factory | System Shield fried by hacking feedback 7075 | -7/Factory | Entered Lower Caves 7075 | -7/Lower Caves | Accompanied by 4 allies 7076 | -7/Lower Caves | Encountered a Warlord checkpoint 7077 | -7/Lower Caves | Learned 4 Factory zone layouts 7251 | -7/Lower Caves | Attracted the attention of an 0b10 checkpoint 7339 | -7/Lower Caves | Discovered new exit (range 6) 7341 | -7/Lower Caves | Identified exit to Lower Caves 7447 | -7/Lower Caves | Entered another Lower Caves area 7447 | -7/Lower Caves | Accompanied by 5 allies 7457 | -7/Lower Caves | Learned Factory terminal intel 7533 | -7/Lower Caves | Build established: Hacker-Sprinter 7534 | -7/Lower Caves | Destroyed 7 combat bots 7672 | -7/Lower Caves | Acquired the password to a Derelict Tinkerer's latest research 7685 | -7/Lower Caves | Found Prototype Special Weapon 7688 | -7/Lower Caves | Discovered exit to Factory (range 15) 7690 | -7/Lower Caves | Identified Molecular Deconstructor 7775 | -7/Lower Caves | Caught by Unaware searching for contraband prototypes 7886 | -7/Lower Caves | Caught by Unaware searching for contraband prototypes 7975 | -7/Lower Caves | Build established: Wizard-Sprinter 8044 | -7/Lower Caves | Learned Factory emergency access door positions 8160 | -7/Lower Caves | Discovered new exit (range 4) 8161 | -7/Lower Caves | Encountered a Warlord checkpoint 8161 | -7/Lower Caves | Identified exit to Data Miner 8238 | -7/Lower Caves | Entered Data Miner 8238 | -7/Data Miner | Accompanied by 3 allies 8238 | -7/Data Miner | Discovered new exit (range 6) 8240 | -7/Data Miner | Identified exit to Proximity Caves 8243 | -7/Data Miner | Met Data Miner 8243 | -7/Data Miner | Reached level 18 8283 | -7/Data Miner | Learned location of Section 7 (-2) 8283 | -7/Data Miner | Acquired the access code to Warlord's prototype stash 8289 | -7/Data Miner | Received God Mode back door access code from Data Miner 8315 | -7/Data Miner | Data Conduit disabled 8328 | -7/Data Miner | Core integrity fell below 50% 8339 | -7/Data Miner | Core integrity fell below 20% 8373 | -7/Data Miner | Found Prototype Device 8373 | -7/Data Miner | Identified Exp. Thermal Shield 8545 | -7/Data Miner | Entered Proximity Caves 8545 | -6/Proximity Caves | Accompanied by 3 allies 8605 | -6/Proximity Caves | Attracted the attention of an 0b10 checkpoint 8748 | -6/Proximity Caves | Learned Factory security intel 8750 | -6/Proximity Caves | Learned Factory emergency access door positions 8783 | -6/Proximity Caves | Discovered exit to Factory (range 10) 8840 | -6/Proximity Caves | Entered Factory 8841 | -6/Factory | Identified exit to Lower Caves 8842 | -6/Factory | Reached level 19 8845 | -6/Factory | Loaded intel: 19 terminal locations 8845 | -6/Factory | Identified exit to Garrison 9032 | -6/Factory | Local fabrication network quarantined 9110 | -6/Factory | Build established: Wizard-Scout 9166 | -6/Factory | Fabricated Kinetic Spear (x1) 9190 | -6/Factory | First assault squad dispatched 9245 | -6/Factory | Core integrity fell below 50% 9355 | -6/Factory | Core integrity fell below 20% 9388 | -6/Factory | Destroyed by G-50 Soldier with Heavy Laser Last Messages --------------- Downloading schematic... L-41 Fighter Tier: 4 Schematic downloaded. >>Traps(Locate) Found 11 traps in 2 arrays: 6x Stasis Trap 5x Tesla Bomb Trap Map updated. >>Alert(Purge) Purged threat record, alert level lowered. 09359_ Detecting nearby Garrison Access. 09379_ Entropy package works its way towards G-50 Soldier core. 09381_ G-50 Soldier core destabilizing. 09383_ Entropy package melds with Concrete. 09385_ G-50 Soldier core entropy levels peaking. 09386_ Concrete disintegrates. 09386_ Entropy package works its way towards G-67 Veteran core. 09388_ G-67 Veteran core destabilizing. [Achievement: Overachiever] Map ----- +----------------------------------------------------+ | # #??????????? ?????"" # =%! #??????????????????? | | # #??????????# ??????" # #???????????????????? | | # #??????????# ???? + #???????????????????? | | #??????????# """ ????# #???????????????????? | | #??????????# """ "???# #???????????????????? | | #??????????# """ ????# #???????????????????? | | #??????????# ?????# = #???????????????????? | | !#?????####### #####??#= ! #???????????????????? | | #?????# #??#= ###########?????????? | | ==#?????# #??#[ #?????????? | | [#?????# #??# #?????????? | | ####### * #### #?????????? | | # = %+ # ### #?????????? | | * ! ######;#######? #?????????? | | *%= # ! = #??? #?????????? | | %=%! !+/= #"" #???? ??????????? | | [ !# #"" " " #???????????????? | | " # #"T " " #???????????????? | | "% # % #"" " " #???????????????? | | ####### #"" " ![[ " #?^?????????????? | | #?????# ! # " ![[ " +??????????^????? | | ##????############# " [[ " #???????????????? | | #????????????????# g"gg " #???????????????? | | #????????????????# " " #???????????????? | | #????????????????# " " #???????????????? | | #????????????????# @ #???^???????????? | | #????????????????##############???????????????? | | #????????????????????????????????????^????????? | | + ????????????????????????????????????????????? | | # ???????????????????????????????????????????? | | # ??????+???+???????????????????????????????? | | #? ????????????????????????????????????????? | | #?#####???????????????????????????????????????? | | #?????????????????????????????????????????????? | | #?????????????????????????????????????????????? | | #?????????????????????????????????????????????? | | #?????????????????????????????????????????????? | | #???????????????????????????????????o?????????? | | #?????????????????????????????????????????????? | | #?????????????????????????????????????????????? | | ???????????????????????????????w??????????????? | | ????????????????????????????????????????^?????? | | ?????????????????????????????????^????????????? | | ?????????????????????????????????????????????????? | | ?????????????????????????????????????????????????? | | ?????????????????????????????????????""??????????? | | ?????????????????????????????????????""??????????? | | ?????????????????????????????????????"T??????????? | | ?????????????????????????????????????""??????????? | | ?????????????????????????????????????""??????????? | +----------------------------------------------------+ Best States ------------- Heat Dissipation 82 Energy Generation 34 Energy Capacity 1115 Matter Stores 300 Matter Capacity 300 Sight Range 17 Robot Scan Range 10 Terrain Scan Range 16 Terrain Scan Density 60 Armor Coverage 300 Resistance: EM 15 Evasion (%) 64 Targeting Accuracy 8 Offensive Hacking 35 Defensive Hacking 40 Item Schematics ----------------- Lgt. Armor Plating | -10/Materials | Hacked EM Pulse Gun | -10/Materials | Hacked Transport Network Coupler | -10/Materials | Hacked VTOL Module | -8/Materials | Hacked Imp. Flight Unit | -8/Materials | Scanalyzed System Shield | -8/Materials | Scanalyzed Adv. Heat Sink | -8/Materials | Scanalyzed Imp. Light Armor Plating | -8/Materials | Scanalyzed Imp. VTOL Module | -8/Materials | Scanalyzed Lgt. Nuclear Core | -8/Materials | Scanalyzed EM Pulse Cannon | -8/Materials | Scanalyzed Adv. Beam Rifle | -8/Materials | Scanalyzed Katana | -8/Materials | Scanalyzed Lgt. Angular Momentum Engine | -8/Materials | Scanalyzed Adv. Targeting Computer | -8/Storage | Hacked Hrd. Heavy Armor Plating | -8/Storage | Hacked Lgt. EM Pulse Cannon | -8/Storage | Hacked Imp. EM Pulse Cannon | -7/Factory | Scanalyzed Hvy. Deuterium Engine | -7/Factory | Scanalyzed Imp. Coolant Injector | -7/Factory | Hacked Mic. Nuclear Core | -7/Factory | Hacked Hvy. Pick | -7/Factory | Hacked Tesla Rifle | -7/Factory | Hacked Combat Drone Bay | -7/Data Miner | Free Lgt. Regenerative Plating | -7/Data Miner | Free Kinetic Spear | -7/Data Miner | Free Robot Schematics ------------------ H-55 Commando | -7/Factory | Hacked S-27 Virus | -7/Factory | Hacked G-50 Soldier | -7/Data Miner | Free G-67 Veteran | -7/Data Miner | Free X-72 Disruptor | -7/Data Miner | Free I-36 Angel | -7/Data Miner | Free I-47 Archangel | -7/Data Miner | Free L-41 Fighter | -6/Factory | Hacked Fabricated ------------ Neutron Cannon | x2 | -7/Factory | Preloaded System Shield | x1 | -7/Factory System Shield | x1 | -7/Factory Energy Well | x2 | -7/Factory | Preloaded Imp. Cooling System | x1 | -7/Factory | Preloaded Kinetic Spear | x1 | -6/Factory Alien Tech Used ----------------- None Achievements -------------- Brute Force Deconstruction Overachiever Challenges ------------ None RPGLIKE | -11 -10 -10 -10 -9 -8 -8 -8 -7 -7 -7 -7 -7 -7 -6 -6 --------- Run | Scr Mat Min Exi Min Mat Sto Gar Fac Gar Fac Low Low Dat Pro Fac Levels Raised 18 | . 1 . 1 2 5 3 . 3 1 . . . 1 . 1 XP Earned 30712 | 3000 1580 1200 350 2925 8726 3508 1169 3253 1345 231 356 716 168 1004 1181 XP Spent 26980 | 2850 1625 . . 4235 7670 2300 1100 3600 2900 . . 700 . . . Upgrades 38 | 7 5 . . 10 9 1 1 2 1 . . 2 . . . Power Slot 1 | 1 . . . . . . . . . . . . . . . Propulsion Slot 3 | 1 . . . 1 1 . . . . . . . . . . Utility Slot 9 | 1 1 . . 1 3 1 . 1 1 . . . . . . Weapon Slot 3 | 1 . . . . 1 . 1 . . . . . . . . Core Integrity 2 | . . . . 2 . . . . . . . . . . . Heat Dissipation 4 | . . . . 1 3 . . . . . . . . . . Mass Support 3 | 1 1 . . 1 . . . . . . . . . . . Inventory Capacity 4 | 2 . . . 1 . . . 1 . . . . . . . Sight Range 1 | . . . . 1 . . . . . . . . . . . Sensor Range 5 | . 3 . . 2 . . . . . . . . . . . Ranged Accuracy 2 | . . . . . 1 . . . . . . 1 . . . Hack Attack % 1 | . . . . . . . . . . . . 1 . . . Protomatter Created 3932 | . 170 198 . 216 931 557 304 190 480 57 160 306 . 158 205 Integrity Restored 9697 | . 238 482 . 590 2023 811 573 629 1152 168 509 634 528 745 615 Core 7587 | . 209 359 . 569 1551 540 428 429 690 144 433 503 528 589 615 Parts 2110 | . 29 123 . 21 472 271 145 200 462 24 76 131 . 156 . Protomatter Decayed 950 | . 88 35 . 122 135 232 107 60 49 . . 122 . . . Game ------ Seed NullLinkedPrototype Manual? 0 Play Time 04:01:20 Cumulative 54.0 hours Start 2020.07.14 @ 11:38:52 End 2020.07.14 @ 17:34:51 Sessions 3 Manual Loads 0 Difficulty Rogue Special Mode Winter2019/RPGLIKE Game No. 28 Rogue 28 Adventurer 0 Explorer 0 Win Type - Total 1 Types 0/0/0/1/0/0/0 Lore% 54 Gallery% 39 Achievement% 50 Wizard Run 0 Options --------- ASCII 0 Keyboard 0 Movement Numpad Keybinds 0 Fullscreen 1 Font 14/SmallcapsGlow Map View 84x54 Tactical HUD 1 Map Filters NONE Filters NONE Steam 1 RUN: a1c307a1-796b-4a97-913a-71b58198d602